[Event "GER-chT States Women 2022"]
[Site "Braunfels"]
[Date "2022.06.18"]
[Round "4.3"]
[White "Voicu-Jagodzinsky, Carmen"]
[Black "Stangl, Anita"]
[Result "1/2-1/2"]
[ECO "C14"]
[WhiteElo "2291"]
[BlackElo "2041"]
[Annotator "TA"]
[PlyCount "38"]
[EventDate "2022.06.15"]
[EventType "swiss"]
[EventCountry "GER"]
[SourceTitle "playchess.com"]
[Source "ChessBase"]
[SourceQuality "1"]
[TimeControl "40/5400+30:1800+30"]

{[%evp 17,38,18,14,16,16,6,9,19,17,14,58,53,110,95,104,57,48,46,57,-25,-6,-20,0]} 1. e4 {[%emt 0:00:02]} e6 {[%emt 0:00:03]} 2. d4 {[%emt 0:00:05]} d5 {[%emt 0:00:05]} 3. Nc3 {[%emt 0:00:04]} Nf6 {[%emt 0:00:07]} 4. Bg5 {[%emt 0:00:04]} Be7 {[%emt 0:00:20]} 5. e5 {[%emt 0:00:05]} Nfd7 {[%emt 0:00:14]} 6. Bxe7 {[%emt 0:00:13]} Qxe7 {[%emt 0:00:07]} 7. f4 {[%emt 0:00:01]} O-O {[%emt 0:01:30]} 8. Nf3 {[%emt 0:00:13]} c5 {[%emt 0:03:33]} 9. Nb5 {[%emt 0:00:31]} Nc6 {[%emt 0:01:37]} 10. c3 {[%emt 0:00:34] C14: French: Classical System: 4 Bg5 Be7 main line.} f6 {[%emt 0:01:02]} 11. h4 {Against g5 was the old line (11.Bd3).} cxd4 {[%emt 0:01:20]} 12. cxd4 {[%emt 0:01:02]} fxe5 {[%emt 0:06:20]} 13. fxe5 {[%emt 0:00:23] [#]} Rf4 $146 {[%emt 0:00:23]} ({Predecessor:} 13... Qf7 14. Qd2 a6 15. Nd6 Qf4 16. O-O-O b5 17. Ng5 Qxd2+ 18. Rxd2 Nb6 19. Nf3 {½-½ (19) Cresswell,M (1766)-Kitchen,M England 2015}) 14. Qd2 {[%emt 0:07:05]} Qb4 {[%emt 0:05:02]} (14... Rg4 $1 $14) 15. Qxb4 $16 Nxb4 {[%emt 0:00:07]} 16. Kd2 {[%emt 0:16:23] Inhibits Nc2.} (16. Kf2 $16) 16... Nb6 $14 {[%emt 0:11:28]} 17. b3 {[%emt 0:02:27]} Bd7 {[%emt 0:06:18]} 18. a3 {[%emt 0:09:59]} (18. Nd6 $14) 18... Nc6 $11 19. Rc1 {[%emt 0:10:56]} Raf8 {[%emt 0:11:02] Weighted Error Value: White=0.20 (precise) /Black=0.12 (very precise)} 1/2-1/2

[Event "GER-chT States Women 2022"]
[Site "Braunfels"]
[Date "2022.06.18"]
[Round "4.4"]
[White "Braun, Kristin"]
[Black "Agrest, Inna"]
[Result "1-0"]
[ECO "C55"]
[WhiteElo "1905"]
[BlackElo "2265"]
[Annotator "TA"]
[PlyCount "95"]
[EventDate "2022.06.15"]
[EventType "swiss"]
[EventCountry "GER"]
[SourceTitle "playchess.com"]
[Source "ChessBase"]
[SourceQuality "1"]
[TimeControl "40/5400+30:1800+30"]

{[%evp 10,95,33,27,39,33,42,10,16,12,10,0,0,11,21,-39,4,19,14,-34,-66,-42,-39,-147,-129,-341,-332,-317,-330,-333,-308,-324,-321,-316,-318,-322,-325,-668,-716,-985,-995,-978,-894,-2186,-2237,-29980,-29980,-5941,0,-41,0,-3547,-2488,-29987,-3000,-29986,-2409,-2237,-2037,-29976,-1107,-888,0,-6,31,-29,-29,-31,-32,-32,0,0,700,704,29973,29974,29996,29983,29992,29993,29994,29988,29988,29989,29992,29993,29994,29986]} 1. e4 {[%emt 0:00:01]} e5 {[%emt 0:00:11]} 2. Nf3 {[%emt 0:00:03]} Nc6 {[%emt 0:00:15]} 3. Bc4 {[%emt 0:00:03]} Nf6 {[%emt 0:00:09]} 4. d3 {[%emt 0:00:03]} h6 {[%emt 0:02:42]} 5. c3 {[%emt 0:00:10]} d6 {[%emt 0:00:35]} 6. Nbd2 {[%emt 0:00:11]} g5 {[%emt 0:01:09] C55: Two Knights: 4 d3, 4 d4 exd4 5 e5 and Max Lange Attack.} 7. h3 {[%emt 0:02:39]} Bg7 {[%emt 0:02:14]} 8. Nf1 {[%emt 0:03:34]} d5 {[%emt 0:07:54] The position is equal.} 9. exd5 {[%emt 0:01:04]} (9. Bb5 {looks sharper.} dxe4 10. Nxe5 Qd5 11. Qa4) 9... Nxd5 {[%emt 0:00:07]} 10. Qb3 {[%emt 0:03:25] [#]} Be6 $146 {[%emt 0:08:13]} ({Predecessor:} 10... Nce7 11. Ng3 O-O 12. Nh5 Qd6 13. Nd2 c6 14. Ne4 Qg6 15. Nxg7 Kxg7 16. h4 f5 {0-1 (38) Sedina,E (2279)-Zawadzka,J (2403) Iasi 2021}) 11. Qxb7 {[%emt 0:04:28]} Na5 {[%emt 0:10:05]} 12. Bb5+ {[%emt 0:09:33]} ({White should play} 12. Qa6 $11 Nxc4 13. Qb5+ (13. dxc4 Nb6 $11) 13... Bd7 14. Qxd5) 12... Kf8 {[%emt 0:04:13]} (12... Ke7 $5 {[%cal Ra5b7]} 13. Qa6 c5 $15) 13. Qa6 {[%emt 0:00:57]} c5 {[%emt 0:03:33]} 14. Bc6 {[%emt 0:14:39]} (14. Ba4 $11) 14... Nxc6 $15 {[%emt 0:10:01]} 15. Qxc6 {[%emt 0:00:02]} Rc8 $36 {[%emt 0:00:20][%mdl 2048] Black fights for an advantage.} 16. Qb5 {[%emt 0:05:23] [#]} (16. Qa6 $1 $15) 16... e4 $1 $17 {[%emt 0:03:55]} 17. N3d2 {[%emt 0:06:58]} (17. dxe4 $17 Nxc3 18. bxc3 Bxc3+ 19. N1d2 Bxa1 20. O-O) 17... Nf4 $1 $19 {[%emt 0:03:16][%csl LRd3,LRg2]} 18. Nxe4 {[%emt 0:01:41] And now Bxf4 would win.} Nxd3+ {[%emt 0:03:41]} 19. Ke2 {[%emt 0:00:19]} c4 {[%emt 0:01:46]} 20. Nfg3 {[%emt 0:09:00]} Bd7 {[%emt 0:15:03]} ({Not} 20... Rb8 $2 21. Qa6 $19) 21. Qa6 {[%emt 0:04:03]} Rc6 {[%emt 0:01:54]} 22. Qxa7 {[%emt 0:02:47]} f5 {[%emt 0:02:30]} 23. Bxg5 $2 {[%emt 0:09:17]} (23. Rd1 fxe4 24. Kf1) 23... hxg5 {[%emt 0:02:11]} 24. Nxg5 {[%emt 0:00:22]} Qxg5 {[%emt 0:10:02]} 25. Qxd7 {[%emt 0:00:09] [#]} Re6+ $3 {[%emt 0:00:14][%mdl 512]} 26. Kf1 {[%emt 0:01:05] [#]} (26. Qxe6 Nf4+) 26... Qd2 $1 {[%emt 0:02:11][%csl Gd3][%cal Rd2f2]} 27. Qd8+ {[%emt 0:05:19]} (27. Ne4 fxe4) 27... Kf7 {[%csl Gd3][%cal Rd2f2]} ({But not} 27... Re8 $2 28. Qd6+ Re7 29. Qd8+ Kf7 30. Qd5+ Re6 31. Qxf5+ Ke7 32. Kg1 $19) 28. Qd7+ {[%emt 0:01:08]} Kf8 $2 {[%emt 0:00:15]} ({Better is} 28... Kf6 $19 {[%csl Gd3][%cal Rd2f2]} 29. Qxd3 cxd3) 29. Qd8+ $15 {[%emt 0:00:08]} Kf7 $2 {[%emt 0:00:03][%mdl 8192]} (29... Re8 $15 30. Qd6+ Re7 31. Qd8+ Kf7 32. Qd5+ Re6 33. Qxf5+ Ke7) 30. Qd7+ $19 {[%emt 0:00:04]} Kf6 {[%emt 0:00:05][%csl Gd3][%cal Rd2f2]} 31. Kg1 {[%emt 0:02:31]} Qxf2+ {[%emt 0:02:30]} 32. Kh2 {[%emt 0:00:01] [#]} f4 {[%emt 0:02:56]} (32... Rxh3+ $142 $3 {[%mdl 512]} 33. Kxh3 Nf4+ 34. Kh4 Kg6 35. Qd8 Bf6+ 36. Qxf6+ Rxf6 37. Raf1 Qe3 38. Rf3 Nxg2+ 39. Kh3 Qxf3 40. Kh2 Nf4 41. Rg1 Kf7 42. b4 Rh6+ 43. Nh5 Rxh5#) 33. Nf1 {[%emt 0:01:11]} f3 {[%emt 0:01:51][%csl Gf3][%cal Rf2g2]} 34. Rg1 {[%emt 0:02:12]} Bf8 {[%emt 0:00:32]} (34... Bh6 $142 35. Qd4+ Qxd4 36. cxd4 Bf4+ 37. Ng3 f2 38. Rgf1 Re3 39. Rxf2 Nxf2 40. Kg1 Bxg3 41. Rf1 Re2 42. d5 Rxb2 43. d6 Rxa2 44. d7 c3 45. h4 Ke7 46. Re1+ Kxd7 47. Rb1 Rxh4 48. Rb7+ Kc6 49. Rb6+ Kxb6 50. Kf1 Rh1#) 35. Ng3 {[%emt 0:01:21]} Qxb2 $2 {[%emt 0:00:50]} (35... Nf4 $19 {[%csl Gf4][%cal Rh8h3]} 36. Ne4+ Rxe4) 36. Qd4+ {[%emt 0:01:20]} Re5 {[%emt 0:00:11] ...Nf2 is the strong threat.} 37. Raf1 {[%emt 0:01:24] Against Nf2} (37. Qd8+ $14 Kg7 38. Rab1) 37... f2 $11 {[%emt 0:00:36] White must now prevent ...Bc5.} (37... Bc5 38. Rxf3+ Ke7 39. Nf5+ Ke8 40. Ng7+ Ke7 41. Nf5+ Ke8 42. Nd6+ Kd7 43. Rf7+ Kc6 44. Qxc4 Rxh3+ 45. Kxh3 $18) 38. Ne4+ {[%emt 0:00:01]} Kg6 {[%emt 0:00:26] Strongly threatening ...Qb8.} 39. Nxf2 {[%emt 0:00:07]} Qb8 {[%emt 0:00:44]} 40. Nxd3 {[%emt 0:01:50] Chess con chili.} Re4+ {[%emt 0:00:29][%mdl 8192]} (40... cxd3 $11 41. Qxd3+ Rf5+ 42. Kh1 Qe5) 41. Nf4+ $18 {[%emt 0:30:15]} Rxf4 {[%emt 0:02:11]} 42. Rxf4 {[%emt 0:00:00][%cal Bf1f4,Bf4g4,Bg4e4][%mdl 32] White mates.} Bd6 {[%emt 0:01:24]} 43. g3 {[%emt 0:00:00]} Rf8 {[%emt 0:03:49]} 44. Rg4+ {[%emt 0:00:00]} Kf7 {[%emt 0:00:10]} 45. Rf1+ {[%emt 0:00:00]} Ke8 {[%emt 0:00:12]} 46. Rxf8+ {[%emt 0:00:00]} Bxf8 {[%emt 0:00:08]} 47. Re4+ {[%emt 0:00:00]} Kf7 {[%emt 0:00:05]} 48. Qxc4+ {[%emt 0:00:00] Quite a comeback for White.  Weighted Error Value: White=0.91/Black=0.75} 1-0

[Event "GER-chT States Women 2022"]
[Site "Braunfels"]
[Date "2022.06.18"]
[Round "4.5"]
[White "Ciolacu, Alessia-Mihaela"]
[Black "Ankerst, Milka"]
[Result "1-0"]
[ECO "E11"]
[WhiteElo "2198"]
[BlackElo "1931"]
[Annotator "TA"]
[PlyCount "75"]
[EventDate "2022.06.15"]
[EventType "swiss"]
[EventCountry "GER"]
[SourceTitle "playchess.com"]
[Source "ChessBase"]
[SourceQuality "1"]
[TimeControl "40/5400+30:1800+30"]

{[%evp 12,75,22,16,49,28,28,14,24,25,63,39,41,37,48,27,69,69,127,131,217,229,220,105,99,102,106,98,108,102,109,111,122,62,70,73,94,89,384,397,397,397,396,394,291,168,154,161,155,29,253,49,53,54,42,12,12,14,12,14,1365,1174,1231,1129,871,823]} 1. d4 {[%emt 0:00:03]} Nf6 {[%emt 0:02:35]} 2. c4 {[%emt 0:00:06]} e6 {[%emt 0:00:55]} 3. Nf3 {[%emt 0:00:10]} Bb4+ {[%emt 0:02:18]} 4. Nbd2 {[%emt 0:01:06]} c5 {[%emt 0:01:33]} 5. a3 {[%emt 0:02:28]} Bxd2+ {[%emt 0:03:20]} 6. Qxd2 {[%emt 0:00:20]} cxd4 {[%emt 0:00:19]} 7. Nxd4 {[%emt 0:00:51]} Nc6 {[%emt 0:00:29] E11: Bogo-Indian.} 8. e3 {[%emt 0:05:06]} O-O {[%emt 0:01:54]} 9. Be2 {[%emt 0:07:35]} d5 {[%emt 0:03:58] The position is equal.} 10. O-O {[%emt 0:00:53] [#]} (10. b4 {with more complications.} Ne4 11. Qb2 Qf6 12. Nf3) 10... Ne5 $146 {[%emt 0:04:13]} ({Predecessor:} 10... e5 11. Nxc6 bxc6 12. b4 Bf5 13. f3 Re8 14. Bb2 Qb6 15. Kh1 Rad8 16. c5 Qc7 {1-0 (49) Galyas,M (2424)-Caruana,F (2373) Budapest 2005}) 11. b3 {[%emt 0:10:31]} dxc4 {[%emt 0:06:20]} 12. bxc4 {[%emt 0:00:14]} Bd7 {[%emt 0:01:24]} 13. Bb2 {[%emt 0:02:59]} Qe7 {[%emt 0:10:20]} 14. Qb4 {[%emt 0:09:55]} Qxb4 {[%emt 0:04:32]} (14... Rfe8 $14) 15. axb4 $16 {[%emt 0:00:01]} Nc6 {[%emt 0:04:27]} (15... Ng6 $16 {might work better.} 16. Nb3 Rfc8) 16. b5 $18 {[%emt 0:02:20]} Nxd4 {[%emt 0:09:00]} 17. exd4 {[%emt 0:09:01]} (17. Bxd4 $18 {and the rest is easy. Hoping for Bf3.} a6 18. Rfd1) 17... a6 $16 {[%emt 0:00:50]} 18. bxa6 {[%emt 0:01:33]} Rxa6 {[%emt 0:01:02]} 19. Rxa6 {[%emt 0:00:27]} bxa6 {[%emt 0:00:02]} 20. Ra1 {[%emt 0:01:05]} Rb8 {[%emt 0:02:04]} 21. Bc3 {[%emt 0:00:36]} Bc8 {[%emt 0:01:02]} 22. h4 {[%emt 0:08:43]} ({White should play} 22. Kf1 $16) 22... Ne4 $14 {[%emt 0:03:14]} 23. Be1 {[%emt 0:01:28]} g6 {[%emt 0:02:45]} 24. f3 {[%emt 0:02:12]} Nd6 {[%emt 0:08:50][%mdl 8192]} (24... Rb2 $16 {was necessary.}) 25. Bg3 $1 $18 {[%emt 0:01:57]} Rb2 {[%emt 0:00:10] Strongly threatening ...Nf5.} 26. Bxd6 {[%emt 0:00:25]} Rxe2 {[%emt 0:01:32][%mdl 4096] Endgame [#] KRB-KRB} 27. Rb1 {[%emt 0:00:50] Inhibits Rb2.} Kg7 {[%emt 0:06:11]} 28. Rb6 {[%emt 0:09:53]} (28. Rb8 $142 Bd7 29. Be5+ f6 30. Bd6) 28... Rc2 {[%emt 0:04:32]} 29. c5 {[%emt 0:00:27] White is more active.} a5 {[%emt 0:02:21] [#]} 30. c6 {[%emt 0:00:20]} ({White should try} 30. g4 $1 $16 {[%cal Rg4g5]}) 30... f6 {[%emt 0:02:18] [#]} (30... a4 $1 $11) 31. Rb7+ $1 {[%emt 0:06:55][%mdl 512]} Kg8 $14 {[%emt 0:02:23]} 32. Rc7 {[%emt 0:00:19]} Ba6 {[%emt 0:00:46]} 33. Bc5 {[%emt 0:00:11][%cal Oh4h5]} e5 {[%emt 0:00:21] [#]} 34. d5 $1 {[%emt 0:00:48][%cal Bd4d5,Bd5d6,Bd6d7][%mdl 32] d6! is the strong threat.} Rxc5 {[%emt 0:02:12]} 35. d6 {[%emt 0:00:06] And now d7 would win.} Kf8 $2 {[%emt 0:00:20][%mdl 8192]} (35... Bb5 $11) 36. d7 $18 {[%emt 0:00:20][%cal Rd7d8] White is clearly winning.} Ke7 {[%emt 0:00:39]} 37. Rc8 $1 {[%emt 0:00:05]} Rd5 {[%emt 0:00:50]} 38. Re8+ {[%emt 0:00:07] Weighted Error Value: White=0.34/Black=0.40} 1-0

[Event "GER-chT States Women 2022"]
[Site "Braunfels"]
[Date "2022.06.18"]
[Round "4.6"]
[White "Spiel, Marianne"]
[Black "Kuckling, Hannah"]
[Result "1/2-1/2"]
[ECO "B44"]
[WhiteElo "1910"]
[BlackElo "2070"]
[Annotator "TA"]
[PlyCount "62"]
[EventDate "2022.06.15"]
[EventType "swiss"]
[EventCountry "GER"]
[SourceTitle "playchess.com"]
[Source "ChessBase"]
[SourceQuality "1"]
[TimeControl "40/5400+30:1800+30"]

{[%evp 9,62,0,13,-20,0,-6,0,-7,12,0,5,0,6,0,30,13,84,9,87,91,95,77,89,0,0,-7,0,-5,98,26,26,26,26,26,26,26,33,26,26,26,26,26,26,0,26,25,26,-87,26,0,26,26,26,26,26]} 1. e4 {[%emt 0:00:03]} c5 {[%emt 0:00:08]} 2. Nf3 {[%emt 0:00:14]} e6 {[%emt 0:00:05]} 3. d4 {[%emt 0:00:07]} cxd4 {[%emt 0:00:04]} 4. Nxd4 {[%emt 0:00:05]} Nc6 {[%emt 0:00:07]} 5. c4 {[%emt 0:04:06]} Nf6 {[%emt 0:00:15]} 6. Nxc6 {[%emt 0:12:19] B44: Sicilian: Taimanov: 5 Nb5.} bxc6 {[%emt 0:00:15]} 7. Qc2 {[%emt 0:03:14] 7.Nc3 is setting a new trend.} e5 {[%emt 0:02:01]} 8. Nc3 {[%emt 0:06:50] The position is equal.} Bb4 {[%emt 0:00:37]} 9. Bd2 {[%emt 0:01:59]} d6 {[%emt 0:02:33]} 10. Be2 {[%emt 0:06:31]} O-O {[%emt 0:13:18]} 11. O-O {[%emt 0:04:10] [#]} Ne8 $146 {[%emt 0:08:10]} ({Predecessor:} 11... Be6 12. Rad1 Bc5 13. Bg5 h6 14. Bh4 Qe7 15. Bxf6 Qxf6 16. b3 a5 17. Rd3 Rfb8 {0-1 (31) Moiseenko,V (2285)-Domogaev,S (2366) Tula 2019}) 12. Rad1 {[%emt 0:04:59]} Nc7 {[%emt 0:05:49]} (12... Bc5 $11) 13. a3 {[%emt 0:02:42]} (13. Na4 $16 Bxd2 14. Qxd2) 13... Bxc3 {[%emt 0:05:15]} (13... Bc5 $1 $11 {keeps the balance.}) 14. Bxc3 $16 {[%emt 0:00:26]} ({But not} 14. Qxc3 c5 $11) 14... Qe7 {[%emt 0:00:07]} 15. Qd3 {[%emt 0:05:07]} Rd8 {[%emt 0:03:28]} 16. Qg3 {[%emt 0:02:26]} ({Better is} 16. f4 $16) 16... Ne6 $1 $11 {[%emt 0:01:34]} 17. f4 {[%emt 0:07:35]} f6 $1 {[%emt 0:03:36]} 18. f5 {[%emt 0:04:53]} Ng5 {[%emt 0:00:41] [#]} (18... Nf4 $1 $11 19. Rf2 Nxe2+ 20. Rxe2 d5) 19. Qe3 {[%emt 0:00:25] White is more active.} (19. Ba5 $1 $16 {[%cal Ra5d8]} Rd7 20. Qe3) 19... a5 {[%emt 0:08:35]} 20. Rd2 {[%emt 0:07:57]} a4 {[%emt 0:09:25]} 21. h4 {[%emt 0:02:50]} Nf7 {[%emt 0:03:01]} 22. Rfd1 {[%emt 0:00:10][%cal Oc4c5]} c5 {[%emt 0:00:35]} 23. Kf2 {[%emt 0:03:58]} Ba6 {[%emt 0:02:03]} 24. Rg1 {[%emt 0:00:43]} Rd7 {[%emt 0:01:51]} 25. g4 {[%emt 0:01:02]} h6 {[%emt 0:00:08]} 26. Qd3 {[%emt 0:03:58]} Qd8 {[%emt 0:05:01]} (26... d5 $5 27. exd5 Nd6 $15) 27. Rc2 {[%emt 0:00:38]} Rb8 {[%emt 0:00:40]} 28. Bd1 {[%emt 0:01:13] [#]} (28. Qd2 $11 {remains equal.}) 28... Bb7 {[%emt 0:01:06]} ({Black should play} 28... d5 $1 $17 {[%cal Rd5d4] ...d4 is the strong threat.} 29. exd5 Nd6) 29. Ke3 {[%emt 0:00:43]} Bc6 {[%emt 0:00:07]} (29... Ba6 $5 {[%cal Rd6d5]} 30. Qd5 Bb7 $11) 30. Rh2 {[%emt 0:00:56]} Qe7 {[%emt 0:01:12]} 31. Bc2 {[%emt 0:00:50]} Kf8 {[%emt 0:00:52] Weighted Error Value: White=0.25 (precise) /Black=0.23 (precise)} 1/2-1/2

[Event "GER-chT States Women 2022"]
[Site "Braunfels"]
[Date "2022.06.18"]
[Round "4.7"]
[White "Hess, Olena"]
[Black "Schilay, Eva"]
[Result "1-0"]
[ECO "A04"]
[WhiteElo "2055"]
[BlackElo "1691"]
[Annotator "RC"]
[PlyCount "111"]
[EventDate "2022.06.15"]
[EventType "swiss"]
[EventCountry "GER"]
[SourceTitle "playchess.com"]
[Source "ChessBase"]
[SourceQuality "1"]
[TimeControl "40/5400+30:1800+30"]

1. Nf3 {[%emt 0:00:02]} Nc6 {[%emt 0:00:45]} 2. d4 {[%emt 0:00:13]} d5 {[%emt 0:00:33]} 3. Bf4 {[%emt 0:00:14]} Bf5 {[%emt 0:02:57]} 4. a3 {[%emt 0:00:43]} e6 {[%emt 0:01:06]} 5. e3 {[%emt 0:00:36]} Bd6 {[%emt 0:01:12]} 6. Bg3 {[%emt 0:02:58]} Nf6 {[%emt 0:01:26]} 7. c4 {[%emt 0:00:18]} O-O {[%emt 0:15:31]} 8. Nc3 {[%emt 0:06:06]} Ne7 {[%emt 0:09:53]} 9. Be2 {[%emt 0:03:23]} c6 {[%emt 0:01:41]} 10. Bxd6 {[%emt 0:02:32]} Qxd6 {[%emt 0:00:09]} 11. Nh4 {[%emt 0:00:21]} Bg6 {[%emt 0:07:10]} 12. Nxg6 {[%emt 0:00:34]} Nxg6 {[%emt 0:00:01]} 13. O-O {[%emt 0:00:27]} Rfd8 {[%emt 0:03:07]} 14. Qc2 {[%emt 0:08:38]} e5 {[%emt 0:13:33]} 15. dxe5 {[%emt 0:24:55]} Qxe5 {[%emt 0:01:03]} 16. cxd5 {[%emt 0:10:01]} Nxd5 {[%emt 0:00:29]} 17. Ne4 {[%emt 0:06:24]} Nf6 {[%emt 0:08:19]} 18. Nxf6+ {[%emt 0:00:49]} Qxf6 {[%emt 0:00:02]} 19. Rad1 {[%emt 0:01:01]} Nf8 {[%emt 0:05:12]} 20. Qb3 {[%emt 0:05:35]} b6 {[%emt 0:01:42]} 21. Bf3 {[%emt 0:02:03]} Rac8 {[%emt 0:01:03]} 22. h3 {[%emt 0:01:31]} c5 {[%emt 0:02:46]} 23. Bd5 {[%emt 0:00:27]} Rd7 {[%emt 0:02:25]} 24. f4 {[%emt 0:08:47]} Ng6 {[%emt 0:06:05]} 25. g3 {[%emt 0:02:07]} h6 {[%emt 0:01:17]} 26. e4 {[%emt 0:03:31]} Rcd8 {[%emt 0:00:39]} 27. e5 {[%emt 0:03:33]} Qe7 {[%emt 0:00:49]} 28. e6 {[%emt 0:00:36]} Rd6 {[%emt 0:09:03]} 29. exf7+ {[%emt 0:00:02]} Kh7 {[%emt 0:00:30]} 30. Rde1 {[%emt 0:05:11]} Qf6 {[%emt 0:02:08]} 31. Rd1 {[%emt 0:01:30]} Qe7 {[%emt 0:00:07]} 32. Kh2 {[%emt 0:00:28]} Qd7 {[%emt 0:00:09]} 33. Bf3 {[%emt 0:00:10]} Rd3 {[%emt 0:01:21]} 34. Rxd3 {[%emt 0:00:17]} Qxd3 {[%emt 0:00:02]} 35. Qxd3 {[%emt 0:00:18]} Rxd3 {[%emt 0:00:06]} 36. f8=Q {[%emt 0:00:13]} Rd2+ {[%emt 0:00:25]} 37. Rf2 {[%emt 0:01:34]} Rxf2+ {[%emt 0:00:08]} 38. Kg1 {[%emt 0:00:03]} Nxf8 {[%emt 0:00:11]} 39. Kxf2 {[%emt 0:00:02]} Kg6 {[%emt 0:01:52]} 40. Bd5 {[%emt 0:00:52]} Nd7 {[%emt 0:01:25]} 41. Kf3 {[%emt 0:30:42]} Nf6 {[%emt 0:04:23]} 42. Bc4 {[%emt 0:00:00]} Ne8 {[%emt 0:10:57]} 43. Bd3+ {[%emt 0:00:00]} Kf6 {[%emt 0:01:17]} 44. Ke4 {[%emt 0:00:00]} Nc7 {[%emt 0:00:26]} 45. g4 {[%emt 0:00:00]} b5 {[%emt 0:05:20]} 46. h4 {[%emt 0:00:00]} a6 {[%emt 0:06:04]} 47. g5+ {[%emt 0:00:00]} hxg5 {[%emt 0:00:54]} 48. fxg5+ {[%emt 0:00:00]} Ke6 {[%emt 0:02:04]} 49. h5 {[%emt 0:00:00]} c4 {[%emt 0:01:27]} 50. Bc2 {[%emt 0:00:00]} Nd5 {[%emt 0:01:39]} 51. h6 {[%emt 0:00:00]} gxh6 {[%emt 0:01:19]} 52. gxh6 {[%emt 0:00:00]} Nf6+ {[%emt 0:00:23]} 53. Kd4 {[%emt 0:00:00]} Kd6 {[%emt 0:00:43]} 54. h7 {[%emt 0:00:00]} Nxh7 {[%emt 0:00:26]} 55. Bxh7 {[%emt 0:00:00]} a5 {[%emt 0:00:02]} 56. Be4 {[%emt 0:00:00]} 1-0

[Event "GER-chT States Women 2022"]
[Site "Braunfels"]
[Date "2022.06.18"]
[Round "4.8"]
[White "Schaefer, Ann-Kathrin"]
[Black "Cordes, Jule"]
[Result "0-1"]
[ECO "C01"]
[WhiteElo "1680"]
[BlackElo "1759"]
[Annotator "NA RC"]
[PlyCount "98"]
[EventDate "2022.06.15"]
[EventType "swiss"]
[EventCountry "GER"]
[SourceTitle "playchess.com"]
[Source "ChessBase"]
[SourceQuality "1"]
[TimeControl "40/5400+30:1800+30"]

1. e4 {[%emt 0:00:01]} e6 {[%emt 0:00:07]} 2. d4 {[%emt 0:00:07]} d5 {[%emt 0:00:10]} 3. exd5 {[%emt 0:00:05]} exd5 {[%emt 0:00:10]} 4. Bd3 {[%emt 0:00:22]} Bd6 {[%emt 0:01:03]} 5. Ne2 {[%emt 0:00:46]} Nc6 {[%emt 0:00:38]} 6. c3 {[%emt 0:00:37]} Nge7 {[%emt 0:00:21]} 7. Bf4 {[%emt 0:01:04]} Bg4 {[%emt 0:03:52]} 8. f3 {[%emt 0:01:18]} Bf5 {[%emt 0:02:48]} 9. O-O {[%emt 0:06:42]} Bxf4 {[%emt 0:08:50]} 10. Nxf4 {[%emt 0:01:55]} Qd6 {[%emt 0:02:55]} 11. Ne2 {[%emt 0:04:41]} O-O-O {[%emt 0:03:36]} 12. b4 {[%emt 0:02:18]} h5 {[%emt 0:00:34]} 13. a4 {[%emt 0:02:27]} h4 {[%emt 0:00:20]} 14. a5 {[%emt 0:03:14]} h3 {[%emt 0:10:11]} 15. g3 {[%emt 0:02:27]} Qg6 {[%emt 0:02:30]} 16. Bxf5+ {[%emt 0:10:31]} Nxf5 {[%emt 0:00:41]} 17. Qb3 {[%emt 0:03:01]} Rhe8 {[%emt 0:12:03]} 18. Ra2 {[%emt 0:10:24]} Re3 {[%emt 0:07:24]} 19. Qc2 {[%emt 0:08:44]} Nce7 {[%emt 0:16:31]} 20. Na3 {[%emt 0:06:13]} Qg5 {[%emt 0:06:15]} 21. Kh1 {[%emt 0:05:52]} Nh4 {[%emt 0:06:50]} 22. Ng1 {[%emt 0:05:57]} Nhf5 {[%emt 0:04:00]} 23. Ne2 {[%emt 0:00:52]} Re8 {[%emt 0:02:50]} 24. c4 {[%emt 0:05:20]} Ng6 {[%emt 0:03:28]} 25. Qd1 {[%emt 0:01:48]} Nd6 {[%emt 0:02:15]} 26. c5 {[%emt 0:03:49]} Nc4 {[%emt 0:01:14]} 27. Nb5 {[%emt 0:01:00]} a6 {[%emt 0:00:32]} 28. Nbc3 {[%emt 0:00:56]} Qf5 {[%emt 0:00:27]} 29. f4 {[%emt 0:01:30]} Rd3 {[%emt 0:01:04]} 30. Qb1 {[%emt 0:01:43]} Ne7 {[%emt 0:01:01]} 31. Qc2 {[%emt 0:02:34]} c6 {[%emt 0:00:37]} 32. Rd1 {[%emt 0:03:32]} Rxd1+ {[%emt 0:00:21]} 33. Qxd1 {[%emt 0:00:28]} Ng6 {[%emt 0:00:36]} 34. Qc2 {[%emt 0:00:46]} Qg4 35. Ng1 {[%emt 0:00:52]} Re3 {[%emt 0:00:54]} 36. Ra1 {[%emt 0:00:46]} Ne7 {[%emt 0:00:30]} 37. Nce2 {[%emt 0:02:29]} Nf5 {[%emt 0:00:18]} 38. Rf1 {[%emt 0:00:30]} Re4 {[%emt 0:00:44]} 39. Nf3 {[%emt 0:00:58]} Nfe3 {[%emt 0:00:20]} 40. Qc1 {[%emt 0:01:19]} Nxf1 {[%emt 0:00:16]} 41. Qxf1 {[%emt 0:30:06]} Re3 {[%emt 0:05:32]} 42. Neg1 {[%emt 0:00:00]} f6 {[%emt 0:02:24]} 43. Qd1 {[%emt 0:00:00]} Qf5 {[%emt 0:01:41]} 44. Qf1 {[%emt 0:00:00]} Qe4 {[%emt 0:00:38]} 45. Qxh3+ {[%emt 0:00:00]} Kc7 {[%emt 0:00:26]} 46. Qh5 {[%emt 0:00:00]} Qe7 {[%emt 0:02:33]} 47. Qg6 {[%emt 0:00:00]} Rb3 {[%emt 0:02:05]} 48. Qc2 {[%emt 0:00:00]} Rxb4 {[%emt 0:00:25]} 49. Qc3 {[%emt 0:00:00]} Rb5 {[%emt 0:01:51]} 0-1